[Event "48th Continental Open"]
[Site "Sturbridge, MA"]
[Date "2018.08.16"]
[Round "2.23"]
[White "Poliannikov, Danila"]
[Black "Lu, Jason"]
[Result "1/2-1/2"]
[ECO "B91"]
[WhiteElo "1994"]
[BlackElo "1826"]
[PlyCount "101"]
[EventDate "2018.08.??"]
[EventType "swiss"]
[EventRounds "9"]
[EventCountry "USA"]
[TimeControl "6000+10"]
[WhiteClock "0:15:55"]
[BlackClock "0:02:20"]

1. e4 {[%emt 0:00:10]} c5 2. Nf3 {[%emt 0:00:11]} d6 {[%emt 0:00:30]} 3. d4 {
[%emt 0:00:10]} cxd4 {[%emt 0:00:12]} 4. Nxd4 {[%emt 0:00:10]} Nf6 {[%emt 0:00:
11]} 5. Nc3 {[%emt 0:00:11]} a6 {[%emt 0:00:10]} 6. g3 {[%emt 0:00:24]} b5 {
[%emt 0:07:19]} 7. Bg2 {[%emt 0:00:11]} Bb7 {[%emt 0:01:37]} 8. a4 {[%emt 0:07:
15]} bxa4 {[%emt 0:08:23]} 9. O-O {[%emt 0:03:25]} e6 {[%emt 0:00:11]} 10. Rxa4
{[%emt 0:03:10]} Nbd7 {[%emt 0:05:47]} 11. Nb3 {[%emt 0:01:57]} Rb8 {[%emt 0:
08:29]} 12. Qe2 {[%emt 0:11:41]} Be7 {[%emt 0:18:02]} 13. Be3 {[%emt 0:02:49]}
O-O {[%emt 0:10:05]} 14. Rd1 {[%emt 0:09:14]} Nb6 {[%emt 0:10:34]} 15. Rb4 {
[%emt 0:02:10]} Nfd7 {[%emt 0:02:24]} 16. Na4 {[%emt 0:15:46]} Nxa4 {[%emt 0:
03:13]} 17. Rxa4 {[%emt 0:00:10]} Bc6 {[%emt 0:00:10]} 18. Raa1 {[%emt 0:14:24]
} Bb5 {[%emt 0:00:11]} 19. c4 {[%emt 0:04:10]} Bc6 {[%emt 0:00:10]} 20. Rxa6 {
[%emt 0:10:35]} Qc8 {[%emt 0:05:53]} 21. Ra3 {[%emt 0:08:54]} d5 {[%emt 0:00:
11]} 22. exd5 {[%emt 0:00:10]} Bxd5 {[%emt 0:00:11]} 23. cxd5 {[%emt 0:00:10]}
Bxa3 {[%emt 0:00:11]} 24. bxa3 {[%emt 0:00:11]} Rxb3 {[%emt 0:00:11]} 25. dxe6
{[%emt 0:00:53]} fxe6 {[%emt 0:10:30]} 26. Qa2 {[%emt 0:00:11]} Qc3 {[%emt 0:
00:12]} 27. Bd4 {[%emt 0:00:10]} Qc4 {[%emt 0:00:00]} 28. Bxg7 {[%emt 0:00:11]}
Kxg7 {[%emt 0:00:00]} 29. Rxd7+ {[%emt 0:00:11]} Rf7 {[%emt 0:00:00]} 30. Qa1+
{[%emt 0:00:11]} Rc3 {[%emt 0:00:00]} 31. Bf1 {[%emt 0:00:12]} Qc5 {[%emt 0:00:
00]} 32. Rxf7+ {[%emt 0:00:15]} Kxf7 {[%emt 0:00:00]} 33. Qb1 {[%emt 0:00:12]}
Rc2 {[%emt 0:00:00]} 34. Qb7+ {[%emt 0:00:12]} Kg8 {[%emt 0:00:00]} 35. Qf3 {
[%emt 0:00:14]} Qd4 {[%emt 0:00:00]} 36. Bd3 {[%emt 0:00:11]} Rb2 {[%emt 0:00:
00]} 37. Kg2 {[%emt 0:00:13]} Kg7 {[%emt 0:00:00]} 38. Be4 {[%emt 0:00:13]} Qd2
{[%emt 0:00:00]} 39. Qg4+ {[%emt 0:00:11]} Kh8 {[%emt 0:00:00]} 40. Qf3 {
[%emt 0:00:10]} Kg7 {[%emt 0:00:00]} 41. Bd3 {[%emt 0:00:00]} h5 {[%emt 0:05:
50]} 42. Bc4 {[%emt 0:00:00]} Qh6 {[%emt 0:03:47]} 43. a4 {[%emt 0:00:00]} Qf6
{[%emt 0:00:11]} 44. Qe3 {[%emt 0:00:00]} Rb4 {[%emt 0:00:24]} 45. Bb5 {
[%emt 0:05:48]} h4 {[%emt 0:00:10]} 46. Bd7 {[%emt 0:00:00]} h3+ {[%emt 0:00:
11]} 47. Kxh3 {[%emt 0:00:00]} Qf5+ {[%emt 0:00:10]} 48. Kg2 {[%emt 0:00:00]}
Qd5+ {[%emt 0:00:10]} 49. Kh3 {[%emt 0:00:00]} Qxd7 {[%emt 0:00:10]} 50. Qg5+ {
[%emt 0:00:00]} Kf7 {[%emt 0:00:10]} 51. Qh5+ {[%emt 0:00:00]} 1/2-1/2

[Event "48th Continental Open"]
[Site "Sturbridge, MA"]
[Date "2018.08.17"]
[Round "3.8"]
[White "Sage, J Timothy"]
[Black "Isakov, Michael"]
[Result "0-1"]
[ECO "D61"]
[WhiteElo "2036"]
[BlackElo "2163"]
[PlyCount "84"]
[EventDate "2018.08.??"]
[EventType "swiss"]
[EventRounds "9"]
[EventCountry "USA"]
[TimeControl "6000+10"]
[WhiteClock "0:11:51"]

1. d4 {[%emt 0:00:10]} d5 2. c4 {[%emt 0:00:11]} e6 {[%emt 0:00:31]} 3. Nc3 {
[%emt 0:00:35]} Be7 {[%emt 0:00:16]} 4. Nf3 {[%emt 0:00:19]} Nf6 {[%emt 0:00:
13]} 5. Bg5 {[%emt 0:00:18]} O-O {[%emt 0:00:30]} 6. e3 {[%emt 0:00:22]} Nbd7 {
[%emt 0:00:22]} 7. Qc2 {[%emt 0:00:35]} h6 {[%emt 0:01:25]} 8. cxd5 {[%emt 0:
04:33]} exd5 {[%emt 0:07:16]} 9. Bf4 {[%emt 0:00:32]} c5 {[%emt 0:06:17]} 10.
Bd3 {[%emt 0:08:00]} Qa5 {[%emt 0:04:19]} 11. O-O {[%emt 0:02:50]} Rd8 {
[%emt 0:05:03]} 12. Rfe1 {[%emt 0:08:53]} Nf8 {[%emt 0:06:43]} 13. dxc5 {
[%emt 0:07:20]} Qxc5 {[%emt 0:05:15]} 14. Nd4 {[%emt 0:06:15]} Bd7 {[%emt 0:04:
46]} 15. Nf5 {[%emt 0:04:54]} Bxf5 {[%emt 0:11:36]} 16. Bxf5 {[%emt 0:01:01]}
Bd6 {[%emt 0:00:16]} 17. Bxd6 {[%emt 0:04:26]} Rxd6 {[%emt 0:07:33]} 18. Ne2 {
[%emt 0:00:12]} Qb6 {[%emt 0:06:29]} 19. Nd4 {[%emt 0:10:49]} Ne6 {[%emt 0:00:
13]} 20. Red1 {[%emt 0:00:11]} Nxd4 {[%emt 0:01:15]} 21. Rxd4 {[%emt 0:00:35]}
Rc6 {[%emt 0:00:22]} 22. Qe2 {[%emt 0:01:43]} g6 {[%emt 0:00:12]} 23. Bh3 {
[%emt 0:01:15]} Re8 {[%emt 0:09:28]} 24. Rad1 {[%emt 0:00:39]} Re4 {[%emt 0:00:
30]} 25. g3 {[%emt 0:02:09]} Rxd4 {[%emt 0:01:57]} 26. Rxd4 {[%emt 0:01:20]}
Rc1+ {[%emt 0:02:32]} 27. Rd1 {[%emt 0:03:28]} Rxd1+ {[%emt 0:00:10]} 28. Qxd1
{[%emt 0:00:10]} Qxb2 {[%emt 0:00:25]} 29. a4 {[%emt 0:10:09]} Ne4 {[%emt 0:00:
11]} 30. Qe1 {[%emt 0:00:46]} Nc3 {[%emt 0:09:25]} 31. a5 {[%emt 0:02:12]} b5 {
[%emt 0:01:49]} 32. axb6 {[%emt 0:00:11]} axb6 {[%emt 0:00:10]} 33. Bg2 {
[%emt 0:00:12]} b5 {[%emt 0:00:11]} 34. e4 {[%emt 0:00:13]} d4 {[%emt 0:01:08]}
35. Bf1 {[%emt 0:00:42]} Qc2 {[%emt 0:03:45]} 36. e5 {[%emt 0:00:32]} d3 {
[%emt 0:03:17]} 37. e6 {[%emt 0:00:10]} Ne2+ {[%emt 0:00:00]} 38. Bxe2 {
[%emt 0:03:04]} Qxe2 {[%emt 0:00:00]} 39. Qc3 {[%emt 0:00:49]} d2 {[%emt 0:00:
00]} 40. Qc8+ {[%emt 0:00:11]} Kh7 {[%emt 0:00:36]} 41. exf7 {[%emt 0:02:02]}
d1=Q+ {[%emt 0:00:27]} 42. Kg2 {[%emt 0:00:11]} Qdf1# {[%emt 0:00:17]} 0-1

[Event "48th Continental Open"]
[Site "Sturbridge, MA"]
[Date "2018.08.17"]
[Round "3.10"]
[White "Kavi, Nithin"]
[Black "Falcao, Wesley"]
[Result "1-0"]
[ECO "B38"]
[WhiteElo "1995"]
[BlackElo "2148"]
[PlyCount "95"]
[EventDate "2018.08.??"]
[EventType "swiss"]
[EventRounds "9"]
[EventCountry "USA"]
[TimeControl "6000+10"]
[WhiteClock "0:00:23"]
[BlackClock "0:00:13"]

1. Nf3 {[%emt 0:00:10]} c5 {[%emt 0:00:22]} 2. c4 {[%emt 0:00:12]} g6 {[%emt 0:
00:12]} 3. e4 {[%emt 0:00:13]} Bg7 {[%emt 0:00:11]} 4. d4 {[%emt 0:00:12]} cxd4
{[%emt 0:00:10]} 5. Nxd4 {[%emt 0:00:10]} Nc6 {[%emt 0:00:13]} 6. Be3 {[%emt 0:
00:13]} Nf6 {[%emt 0:00:10]} 7. Nc3 {[%emt 0:00:11]} d6 {[%emt 0:00:12]} 8. Be2
{[%emt 0:00:13]} O-O {[%emt 0:01:21]} 9. O-O {[%emt 0:00:21]} Bd7 {[%emt 0:01:
07]} 10. Nc2 {[%emt 0:01:10]} Qa5 {[%emt 0:03:14]} 11. f3 {[%emt 0:02:21]} Rfc8
{[%emt 0:00:48]} 12. Qd2 {[%emt 0:01:18]} Ne5 {[%emt 0:04:36]} 13. c5 {[%emt 0:
07:55]} Be6 {[%emt 0:24:03]} 14. cxd6 {[%emt 0:17:08]} exd6 {[%emt 0:00:10]}
15. Qxd6 {[%emt 0:01:04]} Bf8 {[%emt 0:07:55]} 16. Qd2 {[%emt 0:09:31]} Rd8 {
[%emt 0:01:07]} 17. Qe1 {[%emt 0:01:04]} Qc7 {[%emt 0:04:05]} 18. Nd4 {[%emt 0:
09:05]} a6 {[%emt 0:09:08]} 19. Qf2 {[%emt 0:04:30]} Bc4 {[%emt 0:02:18]} 20.
Rfd1 {[%emt 0:01:10]} b5 {[%emt 0:04:27]} 21. Rac1 {[%emt 0:04:01]} Qb7 {
[%emt 0:00:26]} 22. Bg5 {[%emt 0:06:19]} Be7 {[%emt 0:03:18]} 23. Qg3 {[%emt 0:
04:54]} Nh5 {[%emt 0:05:23]} 24. Qh4 {[%emt 0:01:38]} f6 {[%emt 0:00:49]} 25.
Be3 {[%emt 0:00:58]} b4 {[%emt 0:01:11]} 26. Nd5 {[%emt 0:03:14]} Rxd5 {
[%emt 0:02:34]} 27. exd5 {[%emt 0:00:59]} Bxd5 {[%emt 0:00:53]} 28. f4 {
[%emt 0:03:06]} f5 {[%emt 0:02:00]} 29. Qh3 {[%emt 0:02:22]} Ng4 {[%emt 0:01:
12]} 30. Nxf5 {[%emt 0:02:18]} gxf5 {[%emt 0:04:44]} 31. Rxd5 {[%emt 0:00:30]}
Qxd5 {[%emt 0:00:17]} 32. Bc4 {[%emt 0:00:23]} Qxc4 {[%emt 0:00:59]} 33. Rxc4 {
[%emt 0:00:14]} Rd8 {[%emt 0:00:47]} 34. Rc1 {[%emt 0:01:30]} Nhf6 {[%emt 0:01:
35]} 35. Bb6 {[%emt 0:00:40]} Rd6 {[%emt 0:05:45]} 36. Qb3+ {[%emt 0:00:41]}
Kg7 {[%emt 0:00:17]} 37. Bc7 {[%emt 0:03:00]} Rd7 {[%emt 0:00:40]} 38. h3 {
[%emt 0:01:29]} Nd5 {[%emt 0:05:32]} 39. hxg4 {[%emt 0:01:53]} Nxc7 {[%emt 0:
00:15]} 40. gxf5 {[%emt 0:01:50]} Bf6 {[%emt 0:00:30]} 41. Rd1 {[%emt 0:01:51]}
Bd4+ {[%emt 0:00:47]} 42. Kf1 {[%emt 0:00:31]} Rd6 {[%emt 0:01:18]} 43. Qxb4 {
[%emt 0:01:31]} Nb5 {[%emt 0:00:05]} 44. Qxd6 {[%emt 0:02:07]} Nxd6 {[%emt 0:
00:11]} 45. Rxd4 {[%emt 0:00:11]} Nxf5 {[%emt 0:00:15]} 46. Ra4 {[%emt 0:00:21]
} Ne3+ {[%emt 0:00:03]} 47. Kf2 {[%emt 0:00:44]} Nd5 {[%emt 0:00:12]} 48. Kf3 {
[%emt 0:00:11]} 1-0

[Event "48th Continental Open"]
[Site "Sturbridge, MA"]
[Date "2018.08.17"]
[Round "3.15"]
[White "Bader, Jeremy"]
[Black "Torres, Yelfry"]
[Result "1/2-1/2"]
[ECO "B66"]
[WhiteElo "1845"]
[BlackElo "2120"]
[PlyCount "115"]
[EventDate "2018.08.??"]
[EventType "swiss"]
[EventRounds "9"]
[EventCountry "USA"]
[TimeControl "6000+10"]
[WhiteClock "0:02:17"]
[BlackClock "0:00:30"]

1. e4 {[%emt 0:00:10]} c5 2. Nf3 {[%emt 0:00:18]} Nc6 {[%emt 0:01:05]} 3. d4 {
[%emt 0:00:16]} cxd4 {[%emt 0:00:12]} 4. Nxd4 {[%emt 0:00:16]} Nf6 {[%emt 0:00:
21]} 5. Nc3 {[%emt 0:00:25]} d6 {[%emt 0:00:19]} 6. Bg5 {[%emt 0:02:12]} e6 {
[%emt 0:02:32]} 7. Qd2 {[%emt 0:05:02]} a6 {[%emt 0:11:44]} 8. f4 {[%emt 0:02:
09]} h6 {[%emt 0:07:45]} 9. Bh4 {[%emt 0:04:00]} Nxe4 {[%emt 0:00:51]} 10. Nxe4
{[%emt 0:18:55]} Qxh4+ {[%emt 0:00:11]} 11. g3 {[%emt 0:00:37]} Qd8 {[%emt 0:
10:49]} 12. O-O-O {[%emt 0:01:13]} Bd7 {[%emt 0:06:45]} 13. Bg2 {[%emt 0:03:33]
} d5 {[%emt 0:02:58]} 14. Nc3 {[%emt 0:06:43]} Be7 {[%emt 0:01:37]} 15. Nb3 {
[%emt 0:03:56]} Qc7 {[%emt 0:07:06]} 16. Rhe1 {[%emt 0:02:54]} O-O-O {[%emt 0:
01:46]} 17. Bxd5 {[%emt 0:14:17]} Nb4 {[%emt 0:15:27]} 18. Be4 {[%emt 0:02:49]}
Bf6 {[%emt 0:02:12]} 19. a3 {[%emt 0:13:48]} Bxc3 {[%emt 0:04:23]} 20. bxc3 {
[%emt 0:00:17]} Bc6 {[%emt 0:00:17]} 21. Nd4 {[%emt 0:03:42]} Bxe4 {[%emt 0:01:
08]} 22. axb4 {[%emt 0:03:10]} Bf3 {[%emt 0:00:40]} 23. Qe3 {[%emt 0:01:42]}
Bxd1 {[%emt 0:00:18]} 24. Rxd1 {[%emt 0:00:41]} Rhe8 {[%emt 0:00:56]} 25. Re1 {
[%emt 0:01:28]} Rd5 {[%emt 0:03:34]} 26. Kb2 {[%emt 0:02:19]} Kb8 {[%emt 0:02:
40]} 27. Qe4 {[%emt 0:01:16]} Rc8 {[%emt 0:01:23]} 28. Re3 {[%emt 0:00:12]} Qc4
{[%emt 0:00:11]} 29. Rd3 {[%emt 0:04:34]} g6 {[%emt 0:01:48]} 30. Qe3 {[%emt 0:
00:24]} a5 {[%emt 0:01:58]} 31. bxa5 {[%emt 0:01:15]} Rxa5 {[%emt 0:00:54]} 32.
Nb3 {[%emt 0:00:23]} Rd5 {[%emt 0:00:26]} 33. Rd4 {[%emt 0:00:00]} Rxd4 {
[%emt 0:00:51]} 34. Nxd4 {[%emt 0:00:00]} h5 {[%emt 0:00:56]} 35. Qe5+ {
[%emt 0:00:50]} Qc7 {[%emt 0:00:37]} 36. Qe3 {[%emt 0:00:00]} Qb6+ {[%emt 0:01:
19]} 37. Kc1 {[%emt 0:00:04]} Qa5 {[%emt 0:00:37]} 38. Kb2 {[%emt 0:00:00]} Qd5
{[%emt 0:02:15]} 39. Nb3 {[%emt 0:00:25]} Re8 {[%emt 0:00:53]} 40. Qb6 {
[%emt 0:00:20]} Qc6 {[%emt 0:00:30]} 41. Qb4 {[%emt 0:00:00]} Kc7 {[%emt 0:03:
23]} 42. Qd4 {[%emt 0:00:22]} b6 {[%emt 0:00:00]} 43. Qf6 {[%emt 0:00:00]} Qd7
{[%emt 0:00:00]} 44. Nd4 {[%emt 0:00:05]} Kb7 {[%emt 0:01:29]} 45. Qe5 {
[%emt 0:00:00]} Rc8 {[%emt 0:00:00]} 46. Nb3 {[%emt 0:00:31]} Ra8 {[%emt 0:00:
00]} 47. Qf6 {[%emt 0:00:00]} Ra4 {[%emt 0:00:00]} 48. Qe5 {[%emt 0:00:00]} Qe7
{[%emt 0:00:36]} 49. Qb5 {[%emt 0:00:05]} Qa3+ {[%emt 0:00:00]} 50. Kb1 {
[%emt 0:00:10]} Qa2+ {[%emt 0:00:00]} 51. Kc1 {[%emt 0:00:10]} Qa3+ {[%emt 0:
00:00]} 52. Kb1 {[%emt 0:00:13]} Kc7 {[%emt 0:00:00]} 53. Qe8 {[%emt 0:00:15]}
Re4 {[%emt 0:01:13]} 54. Qxf7+ {[%emt 0:00:25]} Kd8 {[%emt 0:00:00]} 55. Qg8+ {
[%emt 0:00:00]} Ke7 {[%emt 0:00:00]} 56. Qg7+ {[%emt 0:00:00]} Kd8 {[%emt 0:00:
00]} 57. Qg8+ {[%emt 0:00:00]} Ke7 {[%emt 0:00:15]} 58. Qg7+ {[%emt 0:00:00]}
1/2-1/2

[Event "48th Continental Open"]
[Site "Sturbridge, MA"]
[Date "2018.08.17"]
[Round "3.20"]
[White "Luo, Ryan"]
[Black "Poliannikov, Danila"]
[Result "0-1"]
[ECO "A62"]
[WhiteElo "1805"]
[BlackElo "1994"]
[PlyCount "92"]
[EventDate "2018.08.??"]
[EventType "swiss"]
[EventRounds "9"]
[EventCountry "USA"]
[TimeControl "6000+10"]
[WhiteClock "0:01:31"]
[BlackClock "0:11:51"]

1. d4 {[%emt 0:00:10]} Nf6 {[%emt 0:00:27]} 2. c4 {[%emt 0:00:11]} c5 {[%emt 0:
00:10]} 3. d5 {[%emt 0:00:10]} e6 {[%emt 0:00:10]} 4. Nc3 {[%emt 0:00:11]} exd5
{[%emt 0:00:10]} 5. cxd5 {[%emt 0:00:10]} d6 {[%emt 0:00:11]} 6. Nf3 {[%emt 0:
00:11]} g6 {[%emt 0:00:11]} 7. g3 {[%emt 0:00:11]} Bg7 {[%emt 0:00:44]} 8. Bg2
{[%emt 0:00:11]} O-O {[%emt 0:01:05]} 9. O-O {[%emt 0:00:11]} Re8 {[%emt 0:01:
01]} 10. Nd2 {[%emt 0:00:11]} b6 {[%emt 0:05:43]} 11. Re1 {[%emt 0:02:06]} Ba6
{[%emt 0:17:50]} 12. a4 {[%emt 0:00:11]} Nbd7 {[%emt 0:01:16]} 13. Qc2 {
[%emt 0:21:04]} Ne5 {[%emt 0:04:06]} 14. h3 {[%emt 0:08:30]} Nd3 {[%emt 0:00:
11]} 15. Rd1 {[%emt 0:13:38]} Nxc1 {[%emt 0:00:52]} 16. Raxc1 {[%emt 0:00:10]}
Bxe2 {[%emt 0:01:32]} 17. Nxe2 {[%emt 0:00:11]} Rxe2 {[%emt 0:00:13]} 18. Qd3 {
[%emt 0:03:26]} Re7 {[%emt 0:03:18]} 19. Nc4 {[%emt 0:02:45]} Nd7 {[%emt 0:06:
36]} 20. Qd2 {[%emt 0:03:16]} Ne5 {[%emt 0:04:37]} 21. Ne3 {[%emt 0:03:17]} Re8
{[%emt 0:01:28]} 22. Re1 {[%emt 0:05:39]} Qf6 {[%emt 0:00:10]} 23. f4 {[%emt 0:
05:10]} Nd7 {[%emt 0:00:10]} 24. Nc4 {[%emt 0:00:11]} a6 {[%emt 0:09:23]} 25.
Qc3 {[%emt 0:08:59]} Qd8 {[%emt 0:24:27]} 26. Rxe8+ {[%emt 0:04:34]} Qxe8 {
[%emt 0:00:10]} 27. Qb3 {[%emt 0:01:16]} Qe7 {[%emt 0:00:10]} 28. Kh2 {[%emt 0:
10:43]} Rb8 {[%emt 0:00:34]} 29. Qc2 {[%emt 0:02:06]} b5 {[%emt 0:00:48]} 30.
Na5 {[%emt 0:03:31]} Qe3 {[%emt 0:00:11]} 31. Nc6 {[%emt 0:01:58]} Re8 {
[%emt 0:00:10]} 32. axb5 {[%emt 0:00:00]} axb5 {[%emt 0:00:10]} 33. Ra1 {
[%emt 0:00:52]} Nf6 {[%emt 0:00:10]} 34. Ra3 {[%emt 0:00:00]} Qe1 {[%emt 0:00:
10]} 35. Qb3 {[%emt 0:00:00]} Qf2 {[%emt 0:00:10]} 36. Qf3 {[%emt 0:00:00]}
Qxb2 {[%emt 0:00:10]} 37. Ra7 {[%emt 0:00:07]} h5 {[%emt 0:00:11]} 38. f5 {
[%emt 0:00:32]} g5 {[%emt 0:00:10]} 39. Ne7+ {[%emt 0:00:00]} Kh7 {[%emt 0:00:
10]} 40. Qe3 {[%emt 0:00:00]} Bf8 {[%emt 0:02:02]} 41. g4 {[%emt 0:00:00]} Nxd5
{[%emt 0:02:46]} 42. Qxg5 {[%emt 0:00:00]} Qe5+ {[%emt 0:00:11]} 43. Kh1 {
[%emt 0:00:00]} Bxe7 {[%emt 0:00:11]} 44. Qxh5+ {[%emt 0:00:00]} Kg7 {[%emt 0:
01:03]} 45. g5 {[%emt 0:00:00]} Qxf5 {[%emt 0:00:10]} 46. Qh6+ {[%emt 0:00:10]}
Kg8 {[%emt 0:00:11]} 0-1

[Event "48th Continental Open"]
[Site "Sturbridge, MA"]
[Date "2018.08.17"]
[Round "4.5"]
[White "Markzon, Gregory"]
[Black "Mulyar, Michael"]
[Result "1/2-1/2"]
[ECO "D10"]
[WhiteElo "2114"]
[BlackElo "2374"]
[PlyCount "138"]
[EventDate "2018.08.??"]
[EventType "swiss"]
[EventRounds "9"]
[EventCountry "USA"]
[TimeControl "6000+10"]
[WhiteClock "0:00:58"]
[BlackClock "0:29:50"]

1. d4 {[%emt 0:00:10]} d5 2. c4 {[%emt 0:00:14]} c6 {[%emt 0:00:34]} 3. Nc3 {
[%emt 0:00:40]} Nf6 {[%emt 0:03:38]} 4. Bg5 {[%emt 0:00:50]} dxc4 {[%emt 0:01:
19]} 5. a4 {[%emt 0:03:42]} Qb6 {[%emt 0:01:37]} 6. Qd2 {[%emt 0:02:53]} Be6 {
[%emt 0:01:53]} 7. e4 {[%emt 0:04:11]} Na6 {[%emt 0:01:52]} 8. a5 {[%emt 0:02:
09]} Qd8 {[%emt 0:00:58]} 9. Nf3 {[%emt 0:03:48]} g6 {[%emt 0:00:16]} 10. e5 {
[%emt 0:01:35]} Nd7 {[%emt 0:04:23]} 11. Ne4 {[%emt 0:08:20]} Qc7 {[%emt 0:03:
02]} 12. Rc1 {[%emt 0:03:44]} Bd5 {[%emt 0:00:46]} 13. Ng3 {[%emt 0:05:48]} e6
{[%emt 0:00:46]} 14. Qc2 {[%emt 0:07:10]} Qxa5+ {[%emt 0:02:30]} 15. Bd2 {
[%emt 0:01:59]} Bb4 {[%emt 0:03:45]} 16. Ne4 {[%emt 0:00:57]} O-O {[%emt 0:09:
50]} 17. Be2 {[%emt 0:07:53]} Bxd2+ {[%emt 0:03:17]} 18. Nexd2 {[%emt 0:01:29]}
Nb4 {[%emt 0:08:34]} 19. Qc3 {[%emt 0:01:02]} Nd3+ {[%emt 0:01:13]} 20. Bxd3 {
[%emt 0:00:14]} Qxc3 {[%emt 0:00:15]} 21. bxc3 {[%emt 0:01:43]} cxd3 {[%emt 0:
00:15]} 22. c4 {[%emt 0:00:18]} Bxf3 {[%emt 0:00:17]} 23. Nxf3 {[%emt 0:00:14]}
c5 {[%emt 0:00:13]} 24. Rd1 {[%emt 0:05:38]} cxd4 {[%emt 0:01:02]} 25. Rxd3 {
[%emt 0:03:16]} Rac8 {[%emt 0:02:11]} 26. Rxd4 {[%emt 0:00:43]} Nb6 {[%emt 0:
00:18]} 27. Nd2 {[%emt 0:01:07]} Rc5 {[%emt 0:00:50]} 28. O-O {[%emt 0:02:00]}
Rxe5 {[%emt 0:00:57]} 29. Ra1 {[%emt 0:01:14]} Rc8 {[%emt 0:04:14]} 30. f4 {
[%emt 0:01:51]} Rec5 {[%emt 0:00:23]} 31. Rxa7 {[%emt 0:01:05]} Nxc4 {[%emt 0:
01:46]} 32. Rxb7 {[%emt 0:00:38]} Nxd2 {[%emt 0:02:19]} 33. Rxd2 {[%emt 0:00:
20]} Rc4 {[%emt 0:00:49]} 34. g3 {[%emt 0:02:12]} Rc2 {[%emt 0:00:33]} 35. Rbd7
{[%emt 0:00:54]} h5 {[%emt 0:01:28]} 36. Kg2 {[%emt 0:01:19]} Kg7 {[%emt 0:00:
16]} 37. h4 {[%emt 0:03:44]} R2c5 {[%emt 0:00:57]} 38. Rd8 {[%emt 0:00:40]}
Rxd8 {[%emt 0:01:01]} 39. Rxd8 {[%emt 0:01:33]} Rc7 {[%emt 0:00:13]} 40. Ra8 {
[%emt 0:00:40]} Kf6 {[%emt 0:00:14]} 41. Ra5 {[%emt 0:00:31]} Rd7 {[%emt 0:00:
28]} 42. Rb5 {[%emt 0:00:28]} Ke7 {[%emt 0:00:29]} 43. Ra5 {[%emt 0:00:17]} Rb7
{[%emt 0:00:19]} 44. Ra6 {[%emt 0:00:29]} Kd7 {[%emt 0:00:45]} 45. Kf3 {
[%emt 0:00:25]} Rb3+ {[%emt 0:00:13]} 46. Kg2 {[%emt 0:00:19]} Rc3 {[%emt 0:00:
13]} 47. Kf2 {[%emt 0:00:28]} Ke7 {[%emt 0:00:24]} 48. Rb6 {[%emt 0:00:34]} Rd3
{[%emt 0:00:13]} 49. Rb7+ {[%emt 0:00:39]} Rd7 {[%emt 0:00:14]} 50. Rb6 {
[%emt 0:01:26]} Kd8 {[%emt 0:00:22]} 51. Rb3 {[%emt 0:00:47]} Kc7 {[%emt 0:00:
18]} 52. Kf3 {[%emt 0:00:29]} Rd5 {[%emt 0:00:20]} 53. Ke4 {[%emt 0:01:30]} Kc6
{[%emt 0:00:25]} 54. Rc3+ {[%emt 0:00:44]} Kd6 {[%emt 0:00:22]} 55. Ra3 {
[%emt 0:00:21]} Rc5 {[%emt 0:00:17]} 56. Ra6+ {[%emt 0:00:25]} Rc6 {[%emt 0:00:
21]} 57. Ra7 {[%emt 0:00:24]} Rc3 {[%emt 0:00:22]} 58. Rxf7 {[%emt 0:01:30]}
Rxg3 {[%emt 0:00:14]} 59. Rg7 {[%emt 0:00:27]} Rg4 {[%emt 0:00:13]} 60. Kf3 {
[%emt 0:00:36]} e5 {[%emt 0:02:00]} 61. fxe5+ {[%emt 0:01:05]} Kxe5 {[%emt 0:
00:13]} 62. Re7+ {[%emt 0:00:11]} Kd5 {[%emt 0:00:14]} 63. Re2 {[%emt 0:01:29]}
Kd4 {[%emt 0:00:17]} 64. Re6 {[%emt 0:02:17]} Kd5 {[%emt 0:00:14]} 65. Re2 {
[%emt 0:00:35]} Kd6 {[%emt 0:00:19]} 66. Re4 {[%emt 0:00:59]} Rxe4 {[%emt 0:00:
24]} 67. Kxe4 {[%emt 0:00:11]} Ke6 {[%emt 0:00:16]} 68. Kf4 {[%emt 0:00:37]}
Kf6 {[%emt 0:00:22]} 69. Ke4 {[%emt 0:00:22]} Ke6 {[%emt 0:00:15]} 1/2-1/2

[Event "48th Continental Open"]
[Site "Sturbridge, MA"]
[Date "2018.08.17"]
[Round "4.7"]
[White "Kumar, Aravind"]
[Black "Kavi, Nithin"]
[Result "1-0"]
[ECO "E84"]
[WhiteElo "2169"]
[BlackElo "1995"]
[PlyCount "77"]
[EventDate "2018.08.??"]
[EventType "swiss"]
[EventRounds "9"]
[EventCountry "USA"]
[TimeControl "6000+10"]
[WhiteClock "0:00:16"]
[BlackClock "0:41:58"]

1. d4 {[%emt 0:00:10]} Nf6 2. c4 {[%emt 0:01:27]} g6 {[%emt 0:00:30]} 3. Nc3 {
[%emt 0:00:10]} Bg7 {[%emt 0:00:11]} 4. e4 {[%emt 0:00:11]} d6 {[%emt 0:00:10]}
5. Nge2 {[%emt 0:00:11]} O-O {[%emt 0:00:13]} 6. f3 {[%emt 0:00:11]} Nc6 {
[%emt 0:00:11]} 7. Be3 {[%emt 0:00:49]} Rb8 {[%emt 0:00:11]} 8. Qd2 {[%emt 0:
02:44]} a6 {[%emt 0:00:10]} 9. Rc1 {[%emt 0:00:11]} Bd7 {[%emt 0:00:11]} 10.
Nd1 {[%emt 0:00:10]} b5 {[%emt 0:08:03]} 11. c5 {[%emt 0:02:12]} e6 {[%emt 0:
00:10]} 12. Bg5 {[%emt 0:12:04]} b4 {[%emt 0:11:12]} 13. Nf2 {[%emt 0:19:56]}
Qe8 {[%emt 0:13:35]} 14. Ng3 {[%emt 0:15:33]} a5 {[%emt 0:00:11]} 15. Be2 {
[%emt 0:04:49]} h5 {[%emt 0:00:11]} 16. d5 {[%emt 0:09:17]} exd5 {[%emt 0:01:
43]} 17. exd5 {[%emt 0:00:22]} Ne7 {[%emt 0:02:51]} 18. Bxf6 {[%emt 0:06:19]}
Bxf6 {[%emt 0:00:10]} 19. Nge4 {[%emt 0:04:40]} Bg7 {[%emt 0:00:11]} 20. O-O {
[%emt 0:08:46]} Nf5 {[%emt 0:07:03]} 21. c6 {[%emt 0:02:40]} Bc8 {[%emt 0:00:
10]} 22. f4 {[%emt 0:00:10]} Qd8 {[%emt 0:02:07]} 23. Bc4 {[%emt 0:05:09]} Ra8
{[%emt 0:00:11]} 24. Rce1 {[%emt 0:03:25]} Ba6 {[%emt 0:02:25]} 25. Bxa6 {
[%emt 0:00:10]} Rxa6 {[%emt 0:00:10]} 26. Ng3 {[%emt 0:00:10]} Nd4 {[%emt 0:10:
13]} 27. Ne2 {[%emt 0:01:37]} Nf5 {[%emt 0:00:10]} 28. Ng3 {[%emt 0:00:10]} Nd4
{[%emt 0:00:10]} 29. Re3 {[%emt 0:00:00]} Rb6 {[%emt 0:00:14]} 30. Rd3 {
[%emt 0:00:00]} h4 {[%emt 0:00:11]} 31. Nge4 {[%emt 0:00:00]} Nf5 {[%emt 0:00:
10]} 32. g4 {[%emt 0:00:00]} hxg3 {[%emt 0:00:10]} 33. hxg3 {[%emt 0:00:00]}
Rb8 {[%emt 0:00:10]} 34. g4 {[%emt 0:00:00]} Ne7 {[%emt 0:00:10]} 35. Ng5 {
[%emt 0:00:00]} Qc8 {[%emt 0:00:10]} 36. Re1 {[%emt 0:00:00]} Re8 {[%emt 0:00:
10]} 37. Rde3 {[%emt 0:00:44]} Bf8 {[%emt 0:00:13]} 38. Qd4 {[%emt 0:00:11]}
Rb5 {[%emt 0:00:11]} 39. Qf6 {[%emt 0:01:36]} 1-0